[Event "*** Titled Tuesday Blitz"]
[Site "Chess.com"]
[Date "2019.04.02"]
[Round "3"]
[White "GMJimKnopf"]
[Black "BasilSmash"]
[Result "1-0"]
[WhiteElo "2530"]
[BlackElo "2442"]
[TimeControl "180+2"]
[EndTime "14:34:46 PDT"]
[Termination "GMJimKnopf won by resignation"]

1. e4 {[%clk 0:03:01.9]} 1... c6 {[%clk 0:03:00.1]} 2. d4 {[%clk 0:03:02.6]}
2... d5 {[%clk 0:03:02]} 3. exd5 {[%clk 0:03:04.4]} 3... cxd5 {[%clk 0:03:02.5]}
4. c4 {[%clk 0:03:06.3]} 4... Nf6 {[%clk 0:03:03.7]} 5. Nc3 {[%clk 0:03:08.2]}
5... Nc6 {[%clk 0:03:04.6]} 6. cxd5 {[%clk 0:03:09.6]} 6... Nxd5 {[%clk
0:03:04.7]} 7. Bb5 {[%clk 0:03:11.1]} 7... g6 {[%clk 0:02:58.5]} 8. h4 {[%clk
0:03:10.9]} 8... Bg7 {[%clk 0:02:57.2]} 9. h5 {[%clk 0:03:12]} 9... Be6 {[%clk
0:02:53.6]} 10. Nf3 {[%clk 0:03:01.3]} 10... Bg4 {[%clk 0:02:49.5]} 11. h6
{[%clk 0:02:51]} 11... Bf6 {[%clk 0:02:44.4]} 12. Qb3 {[%clk 0:02:32.2]} 12...
Bxf3 {[%clk 0:02:38.8]} 13. gxf3 {[%clk 0:02:34.1]} 13... Nxc3 {[%clk
0:02:27.6]} 14. bxc3 {[%clk 0:02:24.1]} 14... O-O {[%clk 0:02:26.7]} 15. Bxc6
{[%clk 0:02:18.5]} 15... bxc6 {[%clk 0:02:26]} 16. f4 {[%clk 0:02:17.8]} 16...
Rb8 {[%clk 0:02:20.6]} 17. Qc4 {[%clk 0:02:18.3]} 17... Qd5 {[%clk 0:02:19.8]}
18. Qxd5 {[%clk 0:02:18.8]} 18... cxd5 {[%clk 0:02:21.7]} 19. Ba3 {[%clk
0:02:13.5]} 19... Rb5 {[%clk 0:02:09.1]} 20. Kd2 {[%clk 0:02:12]} 20... Rfb8
{[%clk 0:02:09.4]} 21. Kd3 {[%clk 0:01:45.5]} 21... Kf8 {[%clk 0:02:08.5]} 22.
Bb4 {[%clk 0:01:45.3]} 22... Rxb4 {[%clk 0:02:02.7]} 23. cxb4 {[%clk 0:01:45.4]}
23... Rxb4 {[%clk 0:02:04.6]} 24. Rab1 {[%clk 0:01:45.2]} 24... Rxd4+ {[%clk
0:02:04.4]} 25. Ke3 {[%clk 0:01:46.4]} 25... Ke8 {[%clk 0:01:50.5]} 26. Rb8+
{[%clk 0:01:47.8]} 26... Kd7 {[%clk 0:01:50.9]} 27. Rg8 {[%clk 0:01:49.4]} 27...
Ra4 {[%clk 0:01:41.6]} 28. Rg7 {[%clk 0:01:50]} 28... Ra3+ {[%clk 0:01:38.2]}
29. Ke2 {[%clk 0:01:51.2]} 29... Rxa2+ {[%clk 0:01:39.3]} 30. Kf3 {[%clk
0:01:52.6]} 30... Bd4 {[%clk 0:01:09.6]} 31. Rxf7 {[%clk 0:01:34.8]} 31... Rxf2+
{[%clk 0:01:08.5]} 32. Kg3 {[%clk 0:01:35.9]} 32... Rb2 {[%clk 0:01:04.1]} 33.
Rxh7 {[%clk 0:01:35.6]} 33... Ke6 {[%clk 0:01:04.6]} 34. Re1+ {[%clk 0:01:32.1]}
34... Kf5 {[%clk 0:01:04.6]} 35. Rf7+ {[%clk 0:01:29.9]} 35... Bf6 {[%clk
0:01:05.3]} 36. h7 {[%clk 0:01:24]} 36... Rb3+ {[%clk 0:01:05.6]} 37. Kg2 {[%clk
0:01:25.2]} 37... Rb2+ {[%clk 0:01:05.1]} 38. Kg1 {[%clk 0:01:26.6]} 38... Rb8
{[%clk 0:00:57.8]} 39. Rexe7 {[%clk 0:01:22.6]} 39... d4 {[%clk 0:00:52.1]} 40.
Re5+ {[%clk 0:01:20.8]} 40... Kxf4 {[%clk 0:00:51.3]} 41. Re6 {[%clk 0:01:22.3]}
41... Kg3 {[%clk 0:00:50.9]} 42. Rexf6 {[%clk 0:01:19.5]} 1-0

[Event "*** Titled Tuesday Blitz"]
[Site "Chess.com"]
[Date "2019.04.02"]
[Round "3"]
[White "Roenko_Artur"]
[Black "Orest_Vovk"]
[Result "0-1"]
[WhiteElo "2271"]
[BlackElo "2329"]
[TimeControl "180+2"]
[EndTime "14:34:48 PDT"]
[Termination "Orest_Vovk won on time"]

1. e4 {[%clk 0:03:01.9]} 1... g5 {[%clk 0:02:58.5]} 2. d4 {[%clk 0:03:00.9]}
2... Bg7 {[%clk 0:02:57.3]} 3. Be3 {[%clk 0:02:59.6]} 3... c5 {[%clk 0:02:57]}
4. c3 {[%clk 0:02:59.2]} 4... Qb6 {[%clk 0:02:56.5]} 5. Qb3 {[%clk 0:02:59.4]}
5... Qxb3 {[%clk 0:02:55.8]} 6. axb3 {[%clk 0:03:00]} 6... cxd4 {[%clk 0:02:57]}
7. cxd4 {[%clk 0:03:00.9]} 7... Nc6 {[%clk 0:02:57.7]} 8. e5 {[%clk 0:02:48.4]}
8... d6 {[%clk 0:02:54.8]} 9. Bxg5 {[%clk 0:02:42]} 9... Nxd4 {[%clk 0:02:52.9]}
10. Na3 {[%clk 0:01:49.1]} 10... Nxb3 {[%clk 0:02:47]} 11. Rd1 {[%clk
0:01:32.2]} 11... Bxe5 {[%clk 0:02:47]} 12. Nb5 {[%clk 0:01:13.2]} 12... Kf8
{[%clk 0:02:40]} 13. Bc4 {[%clk 0:01:07]} 13... Nc5 {[%clk 0:02:16.3]} 14. b4
{[%clk 0:01:02.2]} 14... Ne6 {[%clk 0:02:07.6]} 15. Be3 {[%clk 0:01:01.7]} 15...
a6 {[%clk 0:02:05.8]} 16. Na3 {[%clk 0:00:42.4]} 16... Bc3+ {[%clk 0:02:00.9]}
17. Kf1 {[%clk 0:00:41.1]} 17... Bxb4 {[%clk 0:01:59.8]} 18. Nc2 {[%clk
0:00:41.6]} 18... Bc5 {[%clk 0:01:57]} 19. Bd2 {[%clk 0:00:39.1]} 19... Nf6
{[%clk 0:01:49.2]} 20. Bh6+ {[%clk 0:00:38.6]} 20... Ke8 {[%clk 0:01:49.7]} 21.
Nf3 {[%clk 0:00:14.4]} 21... Bxf2 {[%clk 0:01:49.1]} 22. h3 {[%clk 0:00:06]}
22... Bc5 {[%clk 0:01:44.5]} 23. g4 {[%clk 0:00:05.8]} 23... Ne4 {[%clk
0:01:41.3]} 24. Kg2 {[%clk 0:00:05.7]} 24... Nf2 {[%clk 0:01:40.3]} 25. Bd5
{[%clk 0:00:04.3]} 25... Nxh1 {[%clk 0:01:39.2]} 26. Kxh1 {[%clk 0:00:03.5]}
26... Rb8 {[%clk 0:01:33.5]} 27. Ra1 {[%clk 0:00:03.4]} 27... Bd7 {[%clk
0:01:32.8]} 28. Rb1 {[%clk 0:00:02.7]} 28... b5 {[%clk 0:01:31]} 29. Nh4 {[%clk
0:00:03.8]} 29... Nc7 {[%clk 0:01:13.3]} 30. Nf5 {[%clk 0:00:03.1]} 30... Bxf5
{[%clk 0:01:12.8]} 0-1

[Event "*** Titled Tuesday Blitz"]
[Site "Chess.com"]
[Date "2019.04.02"]
[Round "3"]
[White "Thee-Chessboy"]
[Black "adriangschnitzer"]
[Result "0-1"]
[WhiteElo "2395"]
[BlackElo "2403"]
[TimeControl "180+2"]
[EndTime "14:34:55 PDT"]
[Termination "adriangschnitzer won by resignation"]

1. d4 {[%clk 0:03:01.9]} 1... Nf6 {[%clk 0:02:58.7]} 2. c4 {[%clk 0:03:02.6]}
2... c5 {[%clk 0:02:59.9]} 3. d5 {[%clk 0:03:02.9]} 3... b5 {[%clk 0:03:00.6]}
4. Qc2 {[%clk 0:03:02.9]} 4... b4 {[%clk 0:03:01.1]} 5. e4 {[%clk 0:02:59.7]}
5... d6 {[%clk 0:03:02]} 6. a3 {[%clk 0:02:57.4]} 6... bxa3 {[%clk 0:03:01]} 7.
bxa3 {[%clk 0:02:55.1]} 7... g6 {[%clk 0:03:00]} 8. Bb2 {[%clk 0:02:55.4]} 8...
Bg7 {[%clk 0:03:00.8]} 9. Nf3 {[%clk 0:02:55.1]} 9... O-O {[%clk 0:03:00.4]} 10.
Be2 {[%clk 0:02:55.5]} 10... Nbd7 {[%clk 0:02:59.9]} 11. O-O {[%clk 0:02:54.5]}
11... Rb8 {[%clk 0:03:00.6]} 12. Ra2 {[%clk 0:02:48.6]} 12... Ba6 {[%clk
0:02:46]} 13. Qa4 {[%clk 0:02:32.8]} 13... Rb6 {[%clk 0:02:38.4]} 14. Nbd2
{[%clk 0:02:31.8]} 14... Qc7 {[%clk 0:02:20.3]} 15. Bc3 {[%clk 0:02:30.5]} 15...
Qb7 {[%clk 0:01:51.8]} 16. Ba5 {[%clk 0:02:00.7]} 16... Nh5 {[%clk 0:01:51.8]}
17. Bxb6 {[%clk 0:01:59.4]} 17... Nxb6 {[%clk 0:01:52.6]} 18. Qc2 {[%clk
0:01:55.2]} 18... Nf4 {[%clk 0:01:52.6]} 19. Bd3 {[%clk 0:01:51.7]} 19... Qd7
{[%clk 0:01:48.5]} 20. a4 {[%clk 0:01:41.8]} 20... Qg4 {[%clk 0:01:44.2]} 21. g3
{[%clk 0:01:40.5]} 21... Nxd3 {[%clk 0:01:35.5]} 22. Qxd3 {[%clk 0:01:40.6]}
22... Nxc4 {[%clk 0:01:36.4]} 23. Nxc4 {[%clk 0:01:23.1]} 23... Bxc4 {[%clk
0:01:37.4]} 24. Qxc4 {[%clk 0:01:25]} 24... Qxf3 {[%clk 0:01:38.7]} 25. Rb1
{[%clk 0:01:23.8]} 25... Bd4 {[%clk 0:01:38.8]} 26. Qe2 {[%clk 0:01:17.5]} 26...
Qf6 {[%clk 0:01:32.2]} 27. Rb7 {[%clk 0:01:15.7]} 27... a5 {[%clk 0:01:27.8]}
28. Ra3 {[%clk 0:01:15.5]} 28... Bc3 {[%clk 0:01:26.5]} 29. Rab3 {[%clk
0:01:11.3]} 29... Bb4 {[%clk 0:01:27.2]} 30. Kg2 {[%clk 0:01:08.3]} 30... e6
{[%clk 0:01:22.1]} 31. Rf3 {[%clk 0:01:03.3]} 31... Qe5 {[%clk 0:01:13.7]} 32.
dxe6 {[%clk 0:01:02.5]} 32... Qxe6 {[%clk 0:01:15.6]} 33. Rb6 {[%clk 0:00:46.7]}
33... Re8 {[%clk 0:01:06]} 34. Rd3 {[%clk 0:00:40.3]} 34... c4 {[%clk
0:01:06.2]} 35. Rd4 {[%clk 0:00:35.9]} 35... Bc5 {[%clk 0:01:05.8]} 0-1

[Event "*** Titled Tuesday Blitz"]
[Site "Chess.com"]
[Date "2019.04.02"]
[Round "3"]
[White "lucasran"]
[Black "jlandaw"]
[Result "1-0"]
[WhiteElo "2401"]
[BlackElo "2407"]
[TimeControl "180+2"]
[EndTime "14:34:59 PDT"]
[Termination "lucasran won by resignation"]

1. c4 {[%clk 0:03:01.9]} 1... e5 {[%clk 0:02:56.8]} 2. g3 {[%clk 0:03:02.8]}
2... Nc6 {[%clk 0:02:57.9]} 3. Bg2 {[%clk 0:03:03.9]} 3... g6 {[%clk 0:02:59.3]}
4. Nc3 {[%clk 0:03:04.1]} 4... Bg7 {[%clk 0:03:00.4]} 5. e3 {[%clk 0:02:59]}
5... d6 {[%clk 0:02:56.1]} 6. Nge2 {[%clk 0:02:58.7]} 6... Nge7 {[%clk
0:02:50.6]} 7. O-O {[%clk 0:02:59]} 7... Be6 {[%clk 0:02:49.7]} 8. Nd5 {[%clk
0:02:56.1]} 8... Rb8 {[%clk 0:02:49.7]} 9. Nec3 {[%clk 0:02:53.8]} 9... O-O
{[%clk 0:02:48.7]} 10. d3 {[%clk 0:02:54.5]} 10... f5 {[%clk 0:02:44.8]} 11. Rb1
{[%clk 0:02:55.3]} 11... g5 {[%clk 0:02:36.7]} 12. f4 {[%clk 0:02:55.7]} 12...
exf4 {[%clk 0:02:34.4]} 13. gxf4 {[%clk 0:02:56]} 13... g4 {[%clk 0:02:34]} 14.
b4 {[%clk 0:02:47]} 14... Ng6 {[%clk 0:02:28.6]} 15. b5 {[%clk 0:02:43.8]} 15...
Na5 {[%clk 0:02:17.5]} 16. Bd2 {[%clk 0:02:32.4]} 16... c6 {[%clk 0:01:33.2]}
17. Nb4 {[%clk 0:02:27.7]} 17... Qc7 {[%clk 0:01:03.1]} 18. Qa4 {[%clk
0:02:03.7]} 18... Nh4 {[%clk 0:00:53.3]} 19. Bh1 {[%clk 0:02:04.3]} 19... Rfe8
{[%clk 0:00:44.7]} 20. bxc6 {[%clk 0:02:00.4]} 20... Bxc4 {[%clk 0:00:45]} 21.
dxc4 {[%clk 0:01:50.1]} 21... Nxc4 {[%clk 0:00:46.9]} 22. Nbd5 {[%clk
0:01:41.4]} 22... Qxc6 {[%clk 0:00:47]} 23. Ne7+ {[%clk 0:01:38.9]} 23... Rxe7
{[%clk 0:00:44.5]} 24. Bxc6 {[%clk 0:01:38.7]} 24... Nxd2 {[%clk 0:00:44.6]} 25.
Nd5 {[%clk 0:00:55.9]} 25... Re4 {[%clk 0:00:40.9]} 26. Qxa7 {[%clk 0:00:56.1]}
26... Rf8 {[%clk 0:00:36.1]} 27. Rxb7 {[%clk 0:00:54.7]} 27... Nhf3+ {[%clk
0:00:29.7]} 28. Kg2 {[%clk 0:00:47.2]} 28... Bh8 {[%clk 0:00:21]} 29. Ne7+
{[%clk 0:00:40.6]} 1-0

[Event "*** Titled Tuesday Blitz"]
[Site "Chess.com"]
[Date "2019.04.02"]
[Round "3"]
[White "vovachesss"]
[Black "Chessmatus"]
[Result "1-0"]
[WhiteElo "2528"]
[BlackElo "2347"]
[TimeControl "180+2"]
[EndTime "14:35:01 PDT"]
[Termination "vovachesss won by resignation"]

1. e4 {[%clk 0:03:01.9]} 1... c5 {[%clk 0:03:00.3]} 2. d4 {[%clk 0:03:02.9]}
2... cxd4 {[%clk 0:03:00.5]} 3. c3 {[%clk 0:03:04.4]} 3... dxc3 {[%clk
0:03:01.4]} 4. Nxc3 {[%clk 0:03:06.3]} 4... d6 {[%clk 0:03:02.4]} 5. Nf3 {[%clk
0:03:07.8]} 5... e6 {[%clk 0:03:03.4]} 6. Bc4 {[%clk 0:03:09.2]} 6... Nf6 {[%clk
0:03:03.1]} 7. O-O {[%clk 0:03:10.8]} 7... Nc6 {[%clk 0:03:04]} 8. Qe2 {[%clk
0:03:12.2]} 8... Be7 {[%clk 0:03:04.1]} 9. Rd1 {[%clk 0:03:13.4]} 9... e5 {[%clk
0:03:05]} 10. h3 {[%clk 0:03:12.6]} 10... O-O {[%clk 0:03:00.6]} 11. Bg5 {[%clk
0:03:12.3]} 11... Be6 {[%clk 0:02:57.7]} 12. Bxf6 {[%clk 0:03:07.6]} 12... Bxf6
{[%clk 0:02:56.7]} 13. Bd5 {[%clk 0:03:06.1]} 13... Rc8 {[%clk 0:02:54.9]} 14.
Rd2 {[%clk 0:03:03.7]} 14... Be7 {[%clk 0:02:49.8]} 15. Rad1 {[%clk 0:03:03.4]}
15... Qa5 {[%clk 0:02:49.3]} 16. a3 {[%clk 0:02:56.3]} 16... a6 {[%clk
0:02:39.2]} 17. Qe3 {[%clk 0:02:46]} 17... b5 {[%clk 0:02:33.1]} 18. b4 {[%clk
0:02:39.7]} 18... Qc7 {[%clk 0:02:18.7]} 19. Bxe6 {[%clk 0:02:24.4]} 19... fxe6
{[%clk 0:02:18.8]} 20. Ne2 {[%clk 0:02:14.3]} 20... a5 {[%clk 0:02:10.6]} 21.
Qb3 {[%clk 0:02:11.5]} 21... Rf6 {[%clk 0:02:07.2]} 22. bxa5 {[%clk 0:02:00.5]}
22... Qxa5 {[%clk 0:02:03.2]} 23. Rc2 {[%clk 0:01:42]} 23... Na7 {[%clk
0:01:58.2]} 24. Rdc1 {[%clk 0:01:27.9]} 24... Rxc2 {[%clk 0:01:46]} 25. Rxc2
{[%clk 0:01:28.9]} 25... Qd8 {[%clk 0:01:37.2]} 26. Nc3 {[%clk 0:01:15]} 26...
Qb6 {[%clk 0:01:24.3]} 27. Rb2 {[%clk 0:01:12.8]} 27... Rf4 {[%clk 0:01:19.5]}
28. Qxe6+ {[%clk 0:00:58]} 28... Rf7 {[%clk 0:01:16.9]} 29. Nd5 {[%clk
0:00:48.9]} 29... Qb7 {[%clk 0:01:15.1]} 30. Rc2 {[%clk 0:00:47.4]} 30... Bd8
{[%clk 0:01:02.1]} 31. Qxd6 {[%clk 0:00:33.8]} 31... Bf6 {[%clk 0:00:49.7]} 32.
Nxe5 {[%clk 0:00:27.1]} 32... Bxe5 {[%clk 0:00:48.6]} 33. Qxe5 {[%clk 0:00:29]}
33... Nc6 {[%clk 0:00:49.5]} 34. Qe8+ {[%clk 0:00:28.9]} 1-0

[Event "*** Titled Tuesday Blitz"]
[Site "Chess.com"]
[Date "2019.04.02"]
[Round "3"]
[White "FearNoEvil12"]
[Black "1995Tiger"]
[Result "0-1"]
[WhiteElo "2002"]
[BlackElo "2044"]
[TimeControl "180+2"]
[EndTime "14:35:05 PDT"]
[Termination "1995Tiger won by resignation"]

1. e4 {[%clk 0:03:01.9]} 1... e5 {[%clk 0:02:59.6]} 2. d4 {[%clk 0:03:02]} 2...
exd4 {[%clk 0:03:00.2]} 3. Bc4 {[%clk 0:03:03.5]} 3... Nc6 {[%clk 0:02:58.3]} 4.
Nf3 {[%clk 0:03:04.9]} 4... Bc5 {[%clk 0:02:55.9]} 5. O-O {[%clk 0:03:04.3]}
5... Nf6 {[%clk 0:02:45.6]} 6. e5 {[%clk 0:03:04.8]} 6... d5 {[%clk 0:02:46.7]}
7. Bb5 {[%clk 0:03:06.1]} 7... Ne4 {[%clk 0:02:46.4]} 8. Nxd4 {[%clk 0:03:07.3]}
8... Bd7 {[%clk 0:02:47.6]} 9. Bxc6 {[%clk 0:03:08.3]} 9... bxc6 {[%clk
0:02:48.7]} 10. f3 {[%clk 0:03:09.8]} 10... Ng5 {[%clk 0:02:44.7]} 11. f4 {[%clk
0:03:11.3]} 11... Ne4 {[%clk 0:02:36.4]} 12. Nc3 {[%clk 0:03:10.6]} 12... Nxc3
{[%clk 0:02:29.7]} 13. bxc3 {[%clk 0:03:12.5]} 13... O-O {[%clk 0:02:30.5]} 14.
Be3 {[%clk 0:03:12]} 14... Bb6 {[%clk 0:02:31.2]} 15. Qd2 {[%clk 0:03:11.6]}
15... c5 {[%clk 0:02:31.5]} 16. Ne2 {[%clk 0:03:11.6]} 16... Bc6 {[%clk
0:02:25.4]} 17. f5 {[%clk 0:03:07]} 17... Re8 {[%clk 0:01:59.5]} 18. Bf4 {[%clk
0:03:06.4]} 18... d4 {[%clk 0:01:58.5]} 19. c4 {[%clk 0:03:04.5]} 19... Qh4
{[%clk 0:01:48.9]} 20. Bg3 {[%clk 0:02:52.7]} 20... Qe4 {[%clk 0:01:43]} 21. Rf2
{[%clk 0:02:40.4]} 21... Rad8 {[%clk 0:01:28.5]} 22. Re1 {[%clk 0:02:38.8]}
22... d3 {[%clk 0:01:29.3]} 23. Nf4 {[%clk 0:02:23.6]} 23... dxc2 {[%clk
0:01:13.4]} 24. Rxe4 {[%clk 0:01:59.6]} 24... Rxd2 {[%clk 0:01:12.5]} 25. Re1
{[%clk 0:02:01]} 25... Rxf2 {[%clk 0:00:46.8]} 26. Kxf2 {[%clk 0:01:52.1]} 26...
Rxe5 {[%clk 0:00:46.9]} 27. Rc1 {[%clk 0:01:49.2]} 27... Rxf5 {[%clk 0:00:48.1]}
28. Ke3 {[%clk 0:01:47.1]} 28... g5 {[%clk 0:00:47.4]} 29. Nd3 {[%clk
0:01:46.6]} 29... Ba4 {[%clk 0:00:44.1]} 30. Kd2 {[%clk 0:01:40.3]} 30... Rf6
{[%clk 0:00:41.7]} 31. Be5 {[%clk 0:01:32.6]} 31... Re6 {[%clk 0:00:38.2]} 32.
Bc3 {[%clk 0:01:32.8]} 32... Rd6 {[%clk 0:00:35.4]} 33. Re1 {[%clk 0:01:30.1]}
33... f6 {[%clk 0:00:32.9]} 34. Ke2 {[%clk 0:01:02.4]} 34... Kf7 {[%clk
0:00:31.8]} 35. Nc1 {[%clk 0:01:02.1]} 35... Kg6 {[%clk 0:00:32.3]} 36. Nb3
{[%clk 0:01:01.7]} 36... Bxb3 {[%clk 0:00:30.6]} 37. axb3 {[%clk 0:01:01.2]}
37... Re6+ {[%clk 0:00:26]} 0-1

[Event "*** Titled Tuesday Blitz"]
[Site "Chess.com"]
[Date "2019.04.02"]
[Round "3"]
[White "MajorCoast"]
[Black "Komissarov_alex"]
[Result "0-1"]
[WhiteElo "2041"]
[BlackElo "2102"]
[TimeControl "180+2"]
[EndTime "14:35:13 PDT"]
[Termination "Komissarov_alex won on time"]

1. d4 {[%clk 0:03:01.9]} 1... Nf6 {[%clk 0:02:47.2]} 2. Nf3 {[%clk 0:03:03.2]}
2... d5 {[%clk 0:02:45.5]} 3. c3 {[%clk 0:03:03.2]} 3... Bf5 {[%clk 0:02:44.2]}
4. c4 {[%clk 0:03:02.4]} 4... e6 {[%clk 0:02:41.6]} 5. Nc3 {[%clk 0:03:03.7]}
5... c6 {[%clk 0:02:41.2]} 6. Qb3 {[%clk 0:03:05.2]} 6... Qb6 {[%clk 0:02:35]}
7. c5 {[%clk 0:03:05.9]} 7... Qc7 {[%clk 0:02:32.8]} 8. Bf4 {[%clk 0:03:06.3]}
8... Qc8 {[%clk 0:02:32.5]} 9. Nh4 {[%clk 0:03:07.3]} 9... Be4 {[%clk
0:02:25.5]} 10. f3 {[%clk 0:03:00.1]} 10... Bg6 {[%clk 0:02:20.2]} 11. Nxg6
{[%clk 0:03:00.9]} 11... hxg6 {[%clk 0:02:19.7]} 12. e4 {[%clk 0:03:02.2]} 12...
Nh5 {[%clk 0:02:17.9]} 13. Bg5 {[%clk 0:02:42.3]} 13... Ng3 {[%clk 0:02:08.6]}
14. Rg1 {[%clk 0:02:43.5]} 14... Nxf1 {[%clk 0:02:07.7]} 15. Rxf1 {[%clk
0:02:40.2]} 15... Rxh2 {[%clk 0:01:59.5]} 16. Kf2 {[%clk 0:02:40.4]} 16... Qc7
{[%clk 0:01:48.5]} 17. exd5 {[%clk 0:02:34.8]} 17... cxd5 {[%clk 0:01:46.6]} 18.
Rae1 {[%clk 0:02:12.1]} 18... Nc6 {[%clk 0:01:39.4]} 19. Nxd5 {[%clk 0:02:04.5]}
19... Qd7 {[%clk 0:01:38.1]} 20. Bf4 {[%clk 0:01:39.6]} 20... O-O-O {[%clk
0:01:30.9]} 21. Bxh2 {[%clk 0:00:48.7]} 21... Nxd4 {[%clk 0:01:28.4]} 22. Nb6+
{[%clk 0:00:31.4]} 22... axb6 {[%clk 0:01:22.3]} 23. Qa3 {[%clk 0:00:32.3]}
23... Qc6 {[%clk 0:01:10.5]} 24. Rd1 {[%clk 0:00:15.6]} 24... Bxc5 {[%clk
0:00:57.3]} 25. Qd3 {[%clk 0:00:10.3]} 25... Nf5+ {[%clk 0:00:50.4]} 26. Ke1
{[%clk 0:00:04.9]} 26... Rxd3 {[%clk 0:00:49.8]} 27. Rxd3 {[%clk 0:00:06.8]}
27... Bb4+ {[%clk 0:00:48.8]} 28. Ke2 {[%clk 0:00:07.3]} 28... Qc2+ {[%clk
0:00:47.1]} 0-1

[Event "*** Titled Tuesday Blitz"]
[Site "Chess.com"]
[Date "2019.04.02"]
[Round "3"]
[White "Lion_DL"]
[Black "Zq1"]
[Result "1-0"]
[WhiteElo "2467"]
[BlackElo "2521"]
[TimeControl "180+2"]
[EndTime "14:35:17 PDT"]
[Termination "Lion_DL won by resignation"]

1. e4 {[%clk 0:02:48.7]} 1... c5 {[%clk 0:02:50.1]} 2. Nf3 {[%clk 0:02:49.3]}
2... d6 {[%clk 0:02:50.6]} 3. Bb5+ {[%clk 0:02:50.2]} 3... Bd7 {[%clk
0:02:50.4]} 4. Bxd7+ {[%clk 0:02:50.6]} 4... Nxd7 {[%clk 0:02:51.5]} 5. O-O
{[%clk 0:02:48.5]} 5... Ngf6 {[%clk 0:02:52.4]} 6. Qe2 {[%clk 0:02:45.6]} 6...
g6 {[%clk 0:02:53.1]} 7. c3 {[%clk 0:02:46.4]} 7... Bg7 {[%clk 0:02:53.4]} 8. d4
{[%clk 0:02:47.8]} 8... O-O {[%clk 0:02:53.8]} 9. e5 {[%clk 0:02:44.4]} 9...
dxe5 {[%clk 0:02:49.1]} 10. dxe5 {[%clk 0:02:44.9]} 10... Ng4 {[%clk 0:02:49.8]}
11. e6 {[%clk 0:02:46.1]} 11... Nde5 {[%clk 0:02:50.2]} 12. Nxe5 {[%clk
0:02:40.2]} 12... Nxe5 {[%clk 0:02:50.2]} 13. Bf4 {[%clk 0:02:35.9]} 13... Qd3
{[%clk 0:02:47.9]} 14. Re1 {[%clk 0:02:27]} 14... Qxe2 {[%clk 0:02:48.5]} 15.
Rxe2 {[%clk 0:02:28.2]} 15... Nd3 {[%clk 0:02:48.6]} 16. exf7+ {[%clk
0:02:25.5]} 16... Rxf7 {[%clk 0:02:48.3]} 17. Be3 {[%clk 0:02:26]} 17... Rd8
{[%clk 0:02:45.9]} 18. Na3 {[%clk 0:02:26.9]} 18... Nxb2 {[%clk 0:02:35.1]} 19.
Rxb2 {[%clk 0:02:14.3]} 19... Bxc3 {[%clk 0:02:34.7]} 20. Rbb1 {[%clk
0:02:14.6]} 20... b6 {[%clk 0:02:26.3]} 21. Kf1 {[%clk 0:02:10.8]} 21... e5
{[%clk 0:02:20.4]} 22. Nb5 {[%clk 0:02:09.9]} 22... Bxa1 {[%clk 0:02:20.4]} 23.
Rxa1 {[%clk 0:02:10.5]} 23... Rfd7 {[%clk 0:02:20.8]} 24. Ke2 {[%clk 0:02:10.9]}
24... Kf7 {[%clk 0:02:13.1]} 25. a4 {[%clk 0:02:09.3]} 25... a6 {[%clk
0:02:09.8]} 26. Na3 {[%clk 0:02:00.3]} 26... Ke6 {[%clk 0:01:59.3]} 27. Rb1
{[%clk 0:02:00.2]} 27... b5 {[%clk 0:01:28.5]} 28. axb5 {[%clk 0:01:59]} 28...
axb5 {[%clk 0:01:29.4]} 29. Rxb5 {[%clk 0:01:59.9]} 29... Rc7 {[%clk 0:01:12.2]}
30. Bxc5 {[%clk 0:01:51.1]} 30... Rd5 {[%clk 0:01:05]} 31. Rb6+ {[%clk
0:01:51.6]} 31... Kf7 {[%clk 0:01:05.2]} 32. Be3 {[%clk 0:01:51.6]} 32... e4
{[%clk 0:01:03.3]} 33. Nb5 {[%clk 0:01:48.7]} 33... Rc2+ {[%clk 0:01:02.1]} 34.
Ke1 {[%clk 0:01:50.2]} 34... Kg8 {[%clk 0:00:38.7]} 35. g3 {[%clk 0:01:35.6]}
35... Rd3 {[%clk 0:00:34.7]} 36. Nd6 {[%clk 0:01:25.3]} 36... Ra3 {[%clk
0:00:25.9]} 37. Kf1 {[%clk 0:01:25.6]} 37... Ra1+ {[%clk 0:00:24.4]} 38. Kg2
{[%clk 0:01:26.5]} 38... Ra3 {[%clk 0:00:25.5]} 39. Kh3 {[%clk 0:01:25.7]} 39...
Kg7 {[%clk 0:00:20.3]} 40. Nxe4 {[%clk 0:01:24.1]} 40... h5 {[%clk 0:00:18]} 41.
Rb7+ {[%clk 0:01:22.7]} 41... Kg8 {[%clk 0:00:18]} 42. Nf6+ {[%clk 0:01:22]} 1-0

[Event "*** Titled Tuesday Blitz"]
[Site "Chess.com"]
[Date "2019.04.02"]
[Round "3"]
[White "Micki-taryan"]
[Black "KhalilMousavi77"]
[Result "1-0"]
[WhiteElo "2959"]
[BlackElo "2728"]
[TimeControl "180+2"]
[EndTime "14:35:22 PDT"]
[Termination "Micki-taryan won by resignation"]

1. d4 {[%clk 0:03:01.9]} 1... d5 {[%clk 0:02:57.9]} 2. Nf3 {[%clk 0:03:01.9]}
2... Nf6 {[%clk 0:02:58.5]} 3. c4 {[%clk 0:03:03.4]} 3... e6 {[%clk 0:02:59.3]}
4. Nc3 {[%clk 0:03:04.1]} 4... Be7 {[%clk 0:03:00.6]} 5. Bg5 {[%clk 0:03:04.4]}
5... O-O {[%clk 0:02:56.6]} 6. Qc2 {[%clk 0:03:03.2]} 6... Nbd7 {[%clk
0:02:55.2]} 7. O-O-O {[%clk 0:03:01]} 7... c6 {[%clk 0:02:51.4]} 8. e4 {[%clk
0:02:54.4]} 8... dxe4 {[%clk 0:02:16.9]} 9. Nxe4 {[%clk 0:02:55.3]} 9... Qa5
{[%clk 0:02:12]} 10. Nxf6+ {[%clk 0:02:44.5]} 10... Bxf6 {[%clk 0:02:11.9]} 11.
Bxf6 {[%clk 0:02:43.7]} 11... Nxf6 {[%clk 0:02:13.8]} 12. Kb1 {[%clk 0:02:43.5]}
12... c5 {[%clk 0:02:05.4]} 13. Bd3 {[%clk 0:02:32.9]} 13... b6 {[%clk
0:02:04.3]} 14. dxc5 {[%clk 0:02:08.4]} 14... bxc5 {[%clk 0:01:59.7]} 15. Ne5
{[%clk 0:02:05.9]} 15... Bb7 {[%clk 0:01:56.8]} 16. Rhe1 {[%clk 0:02:06.7]}
16... Rad8 {[%clk 0:01:44.5]} 17. g4 {[%clk 0:02:07.2]} 17... g6 {[%clk
0:01:40]} 18. g5 {[%clk 0:02:07.6]} 18... Nh5 {[%clk 0:01:38.7]} 19. Be4 {[%clk
0:01:49.6]} 19... Bxe4 {[%clk 0:01:17.2]} 20. Qxe4 {[%clk 0:01:50.1]} 20... Rd2
{[%clk 0:01:03.5]} 21. Nc6 {[%clk 0:01:35.7]} 21... Rxd1+ {[%clk 0:01:04.9]} 22.
Rxd1 {[%clk 0:01:37.6]} 22... Qc7 {[%clk 0:01:06.8]} 23. h4 {[%clk 0:01:18.5]}
23... Qh2 {[%clk 0:00:58.5]} 24. Qe5 {[%clk 0:01:15.4]} 24... Qxe5 {[%clk
0:00:55.9]} 25. Nxe5 {[%clk 0:01:17.3]} 25... f6 {[%clk 0:00:27.9]} 26. gxf6
{[%clk 0:01:18.1]} 26... Nxf6 {[%clk 0:00:28.3]} 27. f3 {[%clk 0:01:18.3]} 27...
Nh5 {[%clk 0:00:26.2]} 28. Rd7 {[%clk 0:01:18.7]} 28... Rf4 {[%clk 0:00:26.9]}
29. Rxa7 {[%clk 0:01:16.9]} 29... Rxh4 {[%clk 0:00:27.4]} 30. b4 {[%clk
0:01:18.5]} 30... Rh1+ {[%clk 0:00:21.9]} 31. Kc2 {[%clk 0:01:19.3]} 31... Re1
{[%clk 0:00:22.1]} 32. Nd3 {[%clk 0:01:16.8]} 32... Re2+ {[%clk 0:00:22.9]} 33.
Kd1 {[%clk 0:01:18.3]} 33... Re3 {[%clk 0:00:24.6]} 34. Kd2 {[%clk 0:01:19.8]}
34... Rxf3 {[%clk 0:00:24.6]} 35. b5 {[%clk 0:01:21.3]} 35... Nf4 {[%clk
0:00:15.4]} 36. Ne5 {[%clk 0:01:14.6]} 36... Rf1 {[%clk 0:00:14.6]} 37. b6
{[%clk 0:01:15.5]} 1-0